[Event "SixDays GM March 2024"]
[Site "Budapest"]
[Date "2024.04.01"]
[Round "4.3"]
[White "Juhasz, Agoston"]
[Black "Uskov, Artem"]
[Result "1/2-1/2"]
[ECO "B67"]
[WhiteElo "2406"]
[BlackElo "2392"]
[Annotator "TA"]
[PlyCount "125"]
[EventDate "2024.03.26"]
[EventType "tourn"]
[EventCountry "HUN"]
[SourceTitle "playchess.com"]
[Source "ChessBase"]
[SourceQuality "1"]
[TimeControl "5400+30"]

{[%evp 37,125,56,35,35,54,31,52,-31,-50,-44,-39,-66,0,0,0,0,0,0,0,0,0,0,0,0,0,0,0,-86,-70,-87,-89,-68,-40,-40,-40,-41,-41,-41,-41,-41,-7,-7,-7,-8,-8,-8,-7,-7,-8,-8,-7,-7,-7,-7,-7,-7,-7,-7,-7,-7,-7,-8,-8,-8,-7,-7,-7,-7,0,-8,-8,-8,-8,-8,-8,-8,-8,-8,-7,-7,-7,-8,-8,-8,0,-7,0,0,0,0]} 1. e4 {[%emt 0:00:03]} c5 {[%emt 0:09:20]} 2. Nf3 {[%emt 0:00:15]} d6 {[%emt 0:00:07]} 3. d4 {[%emt 0:00:59]} cxd4 {[%emt 0:00:07]} 4. Nxd4 {[%emt 0:00:04]} Nf6 {[%emt 0:00:06]} 5. Nc3 {[%emt 0:00:04]} Nc6 {[%emt 0:00:04]} 6. Bg5 {[%emt 0:00:46]} e6 {[%emt 0:00:07]} 7. Qd2 {[%emt 0:01:09]} a6 {[%emt 0:00:09]} 8. O-O-O {[%emt 0:00:37]} Bd7 {[%emt 0:00:08]} 9. f3 {[%emt 0:01:08]} Nxd4 {[%emt 0:00:35]} 10. Qxd4 {[%emt 0:00:06]} Be7 {[%emt 0:00:11] B67: Sicilian: Richter-Rauzer: 7...a6 8 0-0-0 Bd7, lines without 9 f4 Be7.} 11. Kb1 {[%emt 0:03:56]} Qc7 {[%emt 0:00:56]} 12. Qd2 $1 {[%emt 0:03:28] 12.Qd2 scores better than 12.h4.} Bc6 {[%emt 0:05:27]} 13. Bd3 {[%emt 0:03:18]} O-O {[%emt 0:04:16]} 14. Ne2 {[%emt 0:03:18]} Bb5 {[%emt 0:20:28]} 15. h4 {[%emt 0:13:50]} Rfc8 {[%emt 0:01:57]} 16. g4 {[%emt 0:03:50]} Bxd3 {[%emt 0:04:46]} 17. cxd3 {[%emt 0:01:58]} Qd8 {[%emt 0:04:19]} 18. Be3 $146 {[%emt 0:06:45]} ({Predecessor:} 18. Rc1 d5 19. e5 Nd7 20. Bxe7 Qxe7 21. f4 Rxc1+ 22. Qxc1 Qd8 23. Qe3 Rc8 24. Nd4 {½-½ Djukic,N (2556)-Kozul,Z (2597) Sarajevo Bosna op 48th 2018 (7)}) 18... a5 {[%emt 0:11:07]} 19. Nd4 {[%emt 0:08:07]} a4 {[%emt 0:02:03]} 20. h5 {[%emt 0:04:21]} Qa5 {[%emt 0:00:53]} 21. Qg2 {[%emt 0:05:38]} (21. Qxa5 {simplifies} Rxa5 22. g5 Nd7 23. f4) 21... a3 {[%emt 0:01:35]} 22. g5 {[%emt 0:05:40]} ({White should play} 22. b3 $1 $14) 22... axb2 $1 $15 {[%emt 0:01:38]} 23. Qxb2 {[%emt 0:00:05]} Nd7 {[%emt 0:01:08]} 24. h6 {[%emt 0:01:40]} Qa3 {[%emt 0:05:51]} (24... Bxg5 25. Bxg5 Qxg5 26. Nxe6 $16 (26. Rdg1 Qf6 $16)) (24... gxh6 $15 25. Nb3 Qa6) 25. Qxa3 {[%emt 0:07:02]} Rxa3 {[%emt 0:00:04]} 26. Nb3 {[%emt 0:00:30]} Nc5 {[%emt 0:00:45]} 27. Nxc5 {[%emt 0:04:03]} dxc5 {[%emt 0:00:10]} 28. Bc1 {[%emt 0:00:33]} Ra4 {[%emt 0:06:34]} 29. hxg7 {[%emt 0:01:25]} c4 {[%emt 0:00:38]} (29... Kxg7 $2 30. Bb2+ Rd4 31. Bxd4+ cxd4 32. f4 $18) 30. dxc4 {[%emt 0:00:57]} Rb4+ {[%emt 0:02:25]} 31. Ka1 {[%emt 0:02:27]} Rbxc4 {[%emt 0:00:21]} 32. a3 {[%emt 0:06:20]} (32. Kb1 $11) 32... Ra8 {[%emt 0:04:19]} (32... Kxg7 $6 33. Bb2+ Kg8 34. Rd7 $11) 33. Rd3 {[%emt 0:01:11] [#]} Rca4 $1 {[%emt 0:00:32]} 34. Ka2 {[%emt 0:10:59]} b5 $1 {[%emt 0:00:06]} 35. f4 $1 {[%emt 0:00:48]} Bxa3 {[%emt 0:01:28]} 36. Rxa3 {[%emt 0:00:35]} Rxa3+ {[%emt 0:00:10]} 37. Bxa3 b4 $1 {[%emt 0:00:02]} (37... Kxg7 $2 38. Kb3 $18) 38. f5 $1 {[%emt 0:00:53]} exf5 {[%emt 0:01:22]} (38... Rxa3+ 39. Kb2 exf5 (39... Kxg7 40. fxe6 fxe6 41. Rh6 $15) 40. exf5 Kxg7 41. Rh6 $11) (38... bxa3 $2 {perishes.} 39. f6 Rd8 40. Kxa3 $18) 39. exf5 {[%emt 0:00:06]} Rxa3+ {[%emt 0:01:46]} 40. Kb2 {[%emt 0:00:01]} Kxg7 {[%emt 0:00:06]} 41. Rh6 $1 {[%emt 0:00:52]} Ra5 {[%emt 0:04:12]} 42. f6+ {[%emt 0:00:31]} Kg8 {[%emt 0:00:02]} 43. Rh5 $1 {[%emt 0:00:31]} h6 {[%emt 0:00:23]} 44. Rxh6 {[%emt 0:00:35]} Rxg5 {[%emt 0:00:02]} 45. Rh4 {[%emt 0:00:46]} Rf5 {[%emt 0:00:31]} 46. Rxb4 {[%emt 0:00:45]} Rxf6 {[%emt 0:00:06]} 47. Kc3 {[%emt 0:00:26]} Rd6 {[%emt 0:00:02]} 48. Rg4+ {[%emt 0:00:34]} Kf8 {[%emt 0:00:26]} 49. Rf4 {[%emt 0:00:31]} Ke7 {[%emt 0:00:42]} 50. Rf3 {[%emt 0:00:21]} f6 {[%emt 0:00:35]} 51. Rd3 {[%emt 0:00:31]} Re6 {[%emt 0:03:38]} 52. Kd2 {[%emt 0:00:20]} Re5 {[%emt 0:00:22]} 53. Ra3 {[%emt 0:00:44]} Ke6 {[%emt 0:00:14]} 54. Rf3 {[%emt 0:00:36]} Re4 {[%emt 0:00:47]} 55. Kd3 {[%emt 0:00:12]} Re1 {[%emt 0:00:01]} 56. Kd2 {[%emt 0:00:22]} Re5 {[%emt 0:00:07]} 57. Kd3 {[%emt 0:00:24]} Rf5 {[%emt 0:00:51]} 58. Re3+ {[%emt 0:00:18]} Kd5 {[%emt 0:00:38]} 59. Re1 {[%emt 0:01:06]} Rh5 {[%emt 0:01:11]} 60. Ra1 {[%emt 0:00:26]} Re5 {[%emt 0:00:52]} 61. Ra6 {[%emt 0:00:28]} f5 {[%emt 0:00:27]} 62. Ra5+ {[%emt 0:00:26]} Ke6 {[%emt 0:00:02]} 63. Rxe5+ 1/2-1/2

[Event "SixDays GM March 2024"]
[Site "Budapest"]
[Date "2024.04.01"]
[Round "4.4"]
[White "Mihok, Oliver"]
[Black "Kaasen, Tor Fredrik"]
[Result "0-1"]
[ECO "B90"]
[WhiteElo "2549"]
[BlackElo "2449"]
[Annotator "TA"]
[PlyCount "121"]
[EventDate "2024.03.26"]
[EventType "tourn"]
[EventCountry "HUN"]
[SourceTitle "playchess.com"]
[Source "ChessBase"]
[SourceQuality "1"]
[TimeControl "5400+30"]

{[%evp 15,121,26,29,31,18,29,31,31,21,17,15,21,37,33,52,45,43,30,37,37,66,34,50,32,37,-4,43,36,35,-49,-41,-43,-34,-107,27,0,26,11,33,30,56,53,56,-74,3,0,9,14,50,60,59,7,12,-51,-43,-110,-115,-139,-115,-143,-140,-177,-175,-179,-168,-175,-162,-205,-193,-254,-224,-216,-81,-291,-256,-436,-321,-668,-668,-637,-651,-197,-260,-444,-12,-962,-931,-1091,-1241,-1583,-308,-1467,-1680,-2108,-4694,-5550,-3119,-29977,-29978,-29978,-29979,-29985,-29985,-29986,-29987,-29987,-29988,-29988]} 1. e4 {[%emt 0:00:03]} c5 {[%emt 0:04:01]} 2. Nf3 {[%emt 0:00:04]} d6 {[%emt 0:00:28]} 3. d4 {[%emt 0:00:05]} cxd4 {[%emt 0:00:11]} 4. Nxd4 {[%emt 0:00:04]} Nf6 {[%emt 0:00:20]} 5. Nc3 {[%emt 0:00:05]} a6 {[%emt 0:00:35]} 6. Be3 {[%emt 0:00:07]} e5 {[%emt 0:01:23]} 7. Nb3 {[%emt 0:00:06]} Be6 {[%emt 0:00:42]} 8. f3 {[%emt 0:00:22]} h5 {[%emt 0:00:24]} 9. Nd5 {[%emt 0:01:38]} Bxd5 {[%emt 0:00:43]} 10. exd5 {[%emt 0:00:07]} Nbd7 {[%emt 0:00:18]} 11. Qd2 {[%emt 0:00:44] White is slightly better.} g6 {[%emt 0:00:28]} 12. O-O-O {[%emt 0:00:48]} Bg7 {[%emt 0:01:02]} 13. Kb1 {[%emt 0:03:03]} Rc8 {[%emt 0:00:21]} 14. c4 {[%emt 0:05:54]} Qc7 {[%emt 0:05:03]} 15. Rc1 {[%emt 0:06:43]} b6 {[%emt 0:04:16]} 16. Be2 {[%emt 0:04:26][%cal Bf1e2,Be2d1,Bd1c2][%mdl 32]} Nc5 {[%emt 0:02:10]} 17. Bd1 {[%emt 0:06:46]} e4 {[%emt 0:12:37]} 18. Nd4 {[%emt 0:10:35]} O-O {[%emt 0:04:11]} 19. Nc6 {[%emt 0:02:20]} Rfe8 {[%emt 0:02:41]} 20. Bc2 {[%emt 0:06:56]} exf3 {[%emt 0:10:00]} (20... b5 $11 {should be considered.} 21. cxb5 axb5 22. fxe4 Qd7 (22... Ncxe4 23. Bxe4 Nxe4 24. Qd3 $11)) 21. gxf3 $14 {[%emt 0:01:05]} b5 {[%emt 0:00:08]} 22. Bxc5 {[%emt 0:02:06]} (22. cxb5 $14 axb5 23. Nb4) 22... dxc5 $15 {[%emt 0:02:00]} 23. Bd3 $1 {[%emt 0:00:31]} Qd6 {[%emt 0:06:23]} 24. Rcd1 {[%emt 0:04:36]} (24. Rc2 $1 $15) 24... b4 {[%emt 0:05:40]} (24... bxc4 $17 25. Bxc4 Rc7) 25. Rhg1 {[%emt 0:02:59]} Kf8 {[%emt 0:04:47]} 26. f4 {[%emt 0:10:48]} (26. Rg2 {simplifies} h4 27. Rgg1 Nh5 28. Rg4) 26... Ne4 {[%emt 0:03:24]} 27. Qg2 {[%emt 0:04:59]} Qxf4 {[%emt 0:12:12][%cal Of4g4]} 28. Rgf1 {[%emt 0:01:13]} Qg4 {[%emt 0:06:43]} 29. Qc2 {[%emt 0:01:59]} (29. Bxe4 $14 {stays ahead.} Rxe4 (29... Qxe4+ 30. Qxe4 Rxe4 31. d6 $11) 30. Qxg4 hxg4 31. d6) 29... Nf6 {[%emt 0:03:52] Black is more active.} (29... Qh4 $1 $17 30. h3 f5) 30. Qf2 $11 {[%emt 0:04:29]} Kg8 {[%emt 0:03:24]} 31. Qxc5 {[%emt 0:00:06]} Nd7 {[%emt 0:00:30]} 32. Qf2 {[%emt 0:01:33]} (32. Qxb4 $2 Rb8 33. Nxb8 Rxb8 $19) 32... Nf6 $1 {[%emt 0:04:39][%cal Bd7f6,Bf6g4,Bg4h2][%mdl 32]} 33. Rg1 {[%emt 0:01:21]} (33. Qa7 $14 Qd7 34. Rxf6 (34. Qxa6 Ng4 $15) 34... Qxa7 35. Nxa7 Bxf6 36. Nxc8 Rxc8 37. d6) 33... Qd7 {[%emt 0:00:15]} 34. Qf3 {[%emt 0:04:48]} (34. Nxb4 Ng4 35. Rxg4 hxg4 $17 (35... Qxg4 36. Rf1 $17)) (34. Qg3 $11) 34... Ng4 $1 $15 {[%emt 0:00:16]} 35. Rde1 {[%emt 0:04:43]} (35. Nxb4 $2 Rb8 $19) (35. h3 $15 Ne5 36. Nxe5 Rxe5 37. Bc2 Rxc4 38. d6) 35... Nxh2 $17 {[%emt 0:00:34]} 36. Qf2 {[%emt 0:01:51]} Ng4 {[%emt 0:00:13]} 37. Qa7 {[%emt 0:00:33]} Qd6 {[%emt 0:01:04] ...Qh2 would now be deadly.} 38. Ne7+ {[%emt 0:02:22] [#]} (38. Qxa6 $2 Qf6 $19) 38... Kh7 $1 {[%emt 0:00:17] Threatens to win with ...Rc7.} 39. Rxg4 {[%emt 0:00:30] [#] aiming for Rh4.} (39. Nxc8 $2 {loses.} Qf6 40. Bxg6+ Kh6 $19 (40... Kxg6 $2 41. Qb6 $19) (40... fxg6 $2 41. Qxg7+ Kxg7 42. Rxe8 $19) (40... Qxg6+ $2 41. Ka1 $19) (40... Kxg6 $2 41. Qb6 $19) (40... fxg6 $2 41. Qxg7+ Kxg7 42. Rxe8 $19) (40... Qxg6+ $2 41. Ka1 $19)) 39... Rc7 $1 $40 {[%emt 0:00:42][%mdl 128] Black wants a kill.} 40. Qf2 {[%emt 0:03:35] And now c5 would win.} Rcxe7 {[%emt 0:00:11]} ({Worse is} 40... hxg4 41. Rh1+ (41. Qxf7 Kh6 42. Re6 Qxe6 43. dxe6 Kg5 44. Qxg6+ Kf4 45. Qe4+ Kg5 46. Qe3+ Kh4) 41... Bh6 42. Qxf7+ Kh8 43. Rxh6#) 41. Rge4 {[%emt 0:00:35]} Rxe4 {[%emt 0:01:15]} 42. Rxe4 {[%emt 0:00:04]} Rxe4 {[%emt 0:00:19]} 43. Bxe4 $19 {[%emt 0:00:04][%mdl 4096] Endgame. KQB-KQB} Qf6 {[%emt 0:00:45]} (43... Qe5 $19 44. Bg2 Kg8) 44. Qe2 {[%emt 0:00:31]} (44. Qxf6 $17 Bxf6 45. d6) 44... Qe5 {[%emt 0:00:24]} 45. c5 $2 {[%emt 0:01:09]} (45. d6 {was necessary.}) 45... f5 {[%emt 0:00:30]} 46. Bf3 {[%emt 0:00:03]} Qxe2 {[%emt 0:00:16]} 47. Bxe2 {[%emt 0:00:03][%cal Od5d6] KB-KB} Bd4 {[%emt 0:00:51]} 48. c6 {[%emt 0:00:05]} Be5 {[%emt 0:00:10] White must now prevent ...h4.} 49. Bxa6 {[%emt 0:00:19] Hoping for a4.} h4 $2 {[%emt 0:00:20]} ({Better is} 49... g5 $19 50. a3 bxa3) 50. a4 $2 {[%emt 0:01:20][%mdl 8192]} (50. Bf1 $11 Kg7 51. a4 bxa3 52. bxa3) 50... bxa3 {[%emt 0:00:05]} 51. b4 {[%emt 0:01:45]} Kg7 {[%emt 0:00:21] ...h3 is the strong threat.} 52. Bf1 {[%emt 0:00:17]} Kf7 $2 {[%emt 0:01:10]} (52... Kf6 53. b5 Bc7) 53. b5 $2 {[%emt 0:00:05]} (53. Ka2 Bc7 54. Kxa3) 53... Bc7 {[%emt 0:00:53] Strongly threatening ...Ke7.} 54. Ka2 {[%emt 0:02:04]} Ke7 {[%emt 0:00:11]} 55. Kxa3 {[%emt 0:01:14]} Kd6 {[%emt 0:00:16][%cal Og6g5] ( -> ...g5!)} 56. Kb3 {[%emt 0:01:11]} g5 {[%emt 0:00:25] Black mates.} 57. Bd3 {[%emt 0:00:35]} f4 {[%emt 0:01:09]} ({Weaker is} 57... Kxd5 58. Bxf5 Kc5 59. Ka4 $11) 58. Kc4 {[%emt 0:00:04]} g4 {[%emt 0:00:30]} 59. Be4 {[%emt 0:00:54]} h3 {[%emt 0:00:11]} 60. Kd3 {[%emt 0:00:05]} f3 {[%emt 0:00:37]} 61. Kd4 {Weighted Error Value: White=0.81/Black=0.42.  Loses game:     	White=2     	---        Missed win:     	---       	Black=1      Mistake:       	White=7     	Black=4      Inaccurate:     	White=4     	Black=3      OK:         	White=9     	Black=17     Best:        	White=5     	Black=3      Strong:       	White=1     	Black=4} 0-1

[Event "SixDays GM March 2024"]
[Site "Budapest"]
[Date "2024.04.01"]
[Round "4.5"]
[White "Grover, Sahaj"]
[Black "Orujov, Farid"]
[Result "1-0"]
[ECO "D10"]
[WhiteElo "2514"]
[BlackElo "2266"]
[Annotator "TA"]
[PlyCount "87"]
[EventDate "2024.03.26"]
[EventType "tourn"]
[EventCountry "HUN"]
[SourceTitle "playchess.com"]
[Source "ChessBase"]
[SourceQuality "1"]
[TimeControl "5400+30"]

{[%evp 13,87,22,17,17,23,19,22,22,19,22,21,18,32,25,16,0,0,0,12,-10,-9,-12,-8,-9,-18,-23,0,-26,-21,-29,-20,-29,-31,-43,-41,-27,-25,-33,0,-35,8,8,137,105,147,0,0,0,0,0,0,0,0,10,9,8,77,78,74,81,79,86,64,66,177,191,186,184,166,149,170,169,870,872,1143,1107]} 1. d4 {[%emt 0:29:10]} d5 {[%emt 0:00:06]} 2. c4 {[%emt 0:00:29]} c6 {[%emt 0:00:04]} 3. cxd5 {[%emt 0:01:12]} cxd5 {[%emt 0:00:06]} 4. Bf4 {[%emt 0:00:05]} Nc6 {[%emt 0:00:24]} 5. e3 {[%emt 0:00:09]} Nf6 {[%emt 0:00:58]} 6. Nc3 {[%emt 0:00:05]} Bf5 {[%emt 0:00:09]} 7. Qb3 {[%emt 0:04:16]} Na5 {[%emt 0:00:31]} 8. Qa4+ {[%emt 0:00:06]} Bd7 {[%emt 0:00:06]} 9. Qc2 {[%emt 0:00:03]} e6 {[%emt 0:01:50]} 10. Bd3 {[%emt 0:01:53] The position is equal.} Rc8 {[%emt 0:01:41]} 11. Nf3 {[%emt 0:00:36]} Bb4 {[%emt 0:02:26][%cal Of6e4]} 12. O-O {[%emt 0:00:53]} O-O {[%emt 0:01:03]} 13. Rac1 {[%emt 0:00:30]} a6 {[%emt 0:06:13]} 14. Ne5 {[%emt 0:05:46]} Bxc3 {[%emt 0:06:42]} 15. bxc3 {[%emt 0:07:18]} Bb5 {[%emt 0:01:34]} 16. Bg5 {[%emt 0:04:28][%cal Od3h7]} (16. Bxb5 {simplifies} axb5 17. Qb2 Qe8 18. Rfe1) 16... Bxd3 {[%emt 0:01:40]} 17. Qxd3 {[%emt 0:00:06]} h6 {[%emt 0:14:43]} 18. Bxf6 {[%emt 0:05:39]} gxf6 {[%emt 0:00:06]} 19. Nf3 {[%emt 0:00:03]} f5 {[%emt 0:01:25]} 20. Kh1 {[%emt 0:04:10]} Nc4 {[%emt 0:03:57]} 21. Rg1 {[%emt 0:01:40][%cal Bf1g1,Bg1g4,Bg4h4,Bh4h5][%mdl 32]} Kh8 {[%emt 0:01:30]} 22. g4 {[%emt 0:01:21]} fxg4 {[%emt 0:00:41]} 23. Rxg4 {[%emt 0:00:06]} Rg8 {[%emt 0:02:36]} 24. Rh4 {[%emt 0:18:22]} Rg6 {[%emt 0:09:16]} 25. e4 {[%emt 0:03:14]} Qd6 {[%emt 0:07:57]} 26. e5 {[%emt 0:02:01]} Qe7 {[%emt 0:00:33]} 27. Rh5 {[%emt 0:01:19]} Kg7 {[%emt 0:07:58]} (27... Qf8 $1 $11) 28. Nh4 $16 {[%emt 0:00:50]} Rg5 {[%emt 0:02:11] [#]} 29. Qe2 {[%emt 0:01:42]} (29. Rxg5+ $1 $16 hxg5 30. Nf3) 29... Rg8 $11 {[%emt 0:07:21]} 30. f4 {[%emt 0:00:07]} Rxh5 {[%emt 0:00:26]} 31. Qxh5 {[%emt 0:00:06]} Kh7 {[%emt 0:00:34]} 32. Nf3 {[%emt 0:03:17] Dodges Nd2} Rg6 {[%emt 0:00:49] ...Qa3 would now be deadly.} 33. f5 $36 {[%emt 0:03:13][%mdl 2048] White has good play.} exf5 {[%emt 0:00:01]} 34. Qxf5 {[%emt 0:00:19]} Qe6 (34... b5 $11 {remains equal.}) 35. Nh4 $16 {[%emt 0:01:29][%cal Bf3h4,Bh4g2,Bg2f4,Bf4h5,Bh5f6,Bf6d7][%mdl 32] Hoping for Qd3.} Ne3 {[%emt 0:06:36]} 36. Qxe6 {[%emt 0:00:07]} Rxe6 {[%emt 0:00:02][%mdl 4096] Endgame. KRN-KRN} 37. Re1 {[%emt 0:00:29]} Nc4 {[%emt 0:02:25]} 38. Ng2 {[%emt 0:00:35]} Rc6 {[%emt 0:01:37]} (38... Rb6 $14) 39. Nf4 $18 {[%emt 0:00:12]} Nb6 {[%emt 0:00:49]} 40. Rb1 {[%emt 0:01:16]} Kg8 {[%emt 0:02:01]} 41. Nh5 {[%emt 0:00:19]} Kf8 {[%emt 0:03:18][%cal Ob6a4]} 42. Nf6 {[%emt 0:00:17][%cal Ob1b6] And now Rxb6! would win.} a5 $2 {[%emt 0:01:04] [#]} (42... Na4) 43. Rxb6 $1 {[%emt 0:00:13][%mdl 512]} Rxb6 {[%emt 0:00:16]} (43... Rxc3 44. Rxb7) 44. Nd7+ {[%emt 0:00:05] Weighted Error Value: White=0.13 (very precise) /Black=0.17 (very precise) .  Mistake:       	White=1     	Black=4      Inaccurate:     	White=2     	Black=4      OK:         	White=13    	Black=14     Best:        	White=6     	---        Brilliant:      	White=1     	---} (44. Nxd5 $2 {too greedy.} Rb1+ 45. Kg2 Rb2+ 46. Kf1 Rxa2 $19) 1-0

[Event "SixDays GM March 2024"]
[Site "Budapest"]
[Date "2024.04.01"]
[Round "5.1"]
[White "Orujov, Farid"]
[Black "Horvath, Adam"]
[Result "0-1"]
[ECO "B47"]
[WhiteElo "2266"]
[BlackElo "2440"]
[Annotator "TA"]
[PlyCount "124"]
[EventDate "2024.03.26"]
[EventType "tourn"]
[EventCountry "HUN"]
[SourceTitle "playchess.com"]
[Source "ChessBase"]
[SourceQuality "1"]
[TimeControl "5400+30"]

{[%evp 21,124,39,39,37,77,76,82,66,49,47,50,39,63,37,50,53,59,65,56,27,24,-72,-69,-58,-37,-87,-91,-89,-93,-93,-94,-85,-93,-172,-161,-154,0,-102,-103,-87,-12,-12,-12,-67,-14,-105,-98,-116,-10,-8,0,-248,-185,-162,-117,-142,-140,-181,-183,-291,-300,-625,-610,-735,-745,-760,-762,-720,0,-181,0,-678,-444,-347,-316,-293,-286,-270,-253,-395,-385,-344,-320,-335,-328,-279,-189,-306,-294,-325,-308,-29989,-29990,-29990,-29991,-29994,-29990,-29990,-29989,-29989,-29983,-29983,-29984,-29985,-29986]} 1. e4 {[%emt 0:00:02]} c5 {[%emt 0:03:35]} 2. Nf3 {[%emt 0:00:05]} Nc6 {[%emt 0:00:17]} 3. d4 {[%emt 0:00:06]} cxd4 {[%emt 0:00:07]} 4. Nxd4 {[%emt 0:00:03]} Qc7 {[%emt 0:00:09]} 5. Nc3 {[%emt 0:00:12]} e6 {[%emt 0:00:06]} 6. f4 {[%emt 0:00:07]} a6 {[%emt 0:00:09]} 7. Nxc6 {[%emt 0:00:07]} Qxc6 {[%emt 0:00:04]} 8. Bd3 {[%emt 0:00:06]} b5 {[%emt 0:00:03]} 9. Qe2 {[%emt 0:00:04]} Bb7 {[%emt 0:00:03]} 10. Bd2 {[%emt 0:00:05]} Rc8 {[%emt 0:00:18]} 11. a3 {[%emt 0:01:02]} h5 {[%emt 0:00:05]} 12. Rf1 {[%emt 0:00:07]} b4 {[%emt 0:05:48]} 13. axb4 {[%emt 0:00:06]} Bxb4 {[%emt 0:00:04]} 14. Kd1 {[%emt 0:00:07]} (14. Bxa6 $2 Ra8 15. Nd5 Bd6 $19 (15... Rxa6 $2 16. Rxa6 Bxa6 17. Qxa6 $17)) 14... Nf6 {[%emt 0:18:08]} 15. e5 {[%emt 0:08:18]} Bxc3 {[%emt 0:02:16]} 16. Bxc3 {[%emt 0:00:25]} Nd5 {[%emt 0:08:46]} 17. Bd2 {[%emt 0:00:38]} Qb6 {[%emt 0:06:43]} 18. Kc1 {[%emt 0:02:43]} Nb4 {[%emt 0:00:39]} 19. Bxb4 {[%emt 0:00:22]} Qxb4 {[%emt 0:00:04]} 20. Ra3 {[%emt 0:13:27]} a5 {[%emt 0:18:38]} 21. Ba6 {[%emt 0:07:59]} (21. Qd2 $11) 21... Bxa6 $17 {[%emt 0:04:42]} 22. Qxa6 {[%emt 0:00:02]} O-O {[%emt 0:00:06]} 23. Qe2 {[%emt 0:20:23]} ({Don't play} 23. Qxa5 Rxc2+ 24. Kxc2 Qc4+ 25. Qc3 Qxf1 $17) (23. Qd3 $15) 23... Rc4 $17 {[%emt 0:04:25]} 24. Qd2 {[%emt 0:05:55]} Rfc8 {[%emt 0:03:32]} 25. c3 {[%emt 0:00:27]} Rd4 {[%emt 0:10:38]} 26. Qf2 {[%emt 0:06:24]} Rd5 {[%emt 0:07:23]} 27. Rd1 {[%emt 0:07:00]} (27. g3 $17 {is a better defense.}) 27... Rxd1+ $19 {[%emt 0:02:19]} 28. Kxd1 {[%emt 0:00:35]} Qb5 $2 {[%emt 0:01:24]} ({Black should try} 28... Qe4 $17 {Hoping for ...Qb1+.} 29. Kc1 a4) 29. Kc1 {[%emt 0:01:47]} (29. Qe2 $1 $11 Qb6 30. Kc2) 29... a4 $17 {[%emt 0:00:47]} 30. g3 {[%emt 0:02:23]} Rc4 {[%emt 0:01:09]} (30... Rb8 $17 31. Qc2 Qf1+ 32. Kd2 Qg2+ 33. Kd3 Rxb2 34. Qxg2 Rxg2 35. Rxa4 Kf8 (35... Rxh2 $2 36. Ke3 $19) 36. Ra8+ Ke7) 31. Qf3 $11 {[%emt 0:03:19]} g6 {[%emt 0:00:43]} (31... Qb6 {is more complex.} 32. Kb1 g6 33. Qa8+ Kg7) 32. Kb1 {[%emt 0:02:29]} (32. Qa8+ $1 $11 Kg7 33. Kb1) 32... Kg7 {[%emt 0:00:37]} (32... Rc6 $15) 33. Qd3 {[%emt 0:03:06]} (33. Qa8 $1 $11) 33... Qc6 $17 {[%emt 0:00:16]} 34. h4 {[%emt 0:01:43]} Rc5 {[%emt 0:02:10]} ({Better is} 34... Kh8 $17 35. Qd6 Qxd6 36. exd6 Kg7) 35. Qd4 $11 {[%emt 0:02:01]} Rc4 {[%emt 0:00:03]} 36. Qd6 $2 {[%emt 0:01:11]} (36. Qd3 $1 $11 {and White stays safe.}) 36... Qe4+ {[%emt 0:01:17]} 37. Ka2 {[%emt 0:00:23]} Qb7 {[%emt 0:00:33]} 38. Qd1 {[%emt 0:05:15] [#]} Qc6 $1 {[%emt 0:00:19]} 39. Qd3 {[%emt 0:02:20]} Re4 {[%emt 0:00:18]} 40. Qd1 {[%emt 0:00:56]} (40. Kb1 {was called for.}) 40... Qb5 $19 {[%emt 0:00:35]} 41. Qc1 $2 {[%emt 0:03:37]} (41. c4 Qxc4+ (41... Rxc4 $2 42. Qd2 $19) 42. Kb1) 41... Qc4+ $19 {[%emt 0:00:26]} 42. Ka1 {[%emt 0:00:17]} Re2 {[%emt 0:00:26]} 43. Qd1 {[%emt 0:00:44]} Qb5 {[%emt 0:00:06]} 44. Qc1 {[%emt 0:00:29]} Qc4 $2 {[%emt 0:00:28]} (44... Qd5 45. Rxa4 Rh2) 45. Qd1 $19 {[%emt 0:00:18]} Qb5 $2 {[%emt 0:00:49]} (45... Rg2 46. Rxa4 Qc6) 46. Qc1 $19 {[%emt 0:00:33]} Qd3 {[%emt 0:00:23]} 47. Rxa4 {[%emt 0:01:33]} Rf2 {[%emt 0:01:25]} 48. Rd4 {[%emt 0:00:22]} Qf3 {[%emt 0:00:06]} 49. Ka2 {[%emt 0:01:30]} Qxg3 {[%emt 0:00:32]} 50. Rxd7 {[%emt 0:00:49]} (50. Kb3 $142) 50... Qxh4 $19 {[%emt 0:00:38]} ({Weaker is} 50... Rxf4 51. Qh1 $19) 51. Rd4 {[%emt 0:00:33]} Qg3 {[%emt 0:00:27]} 52. c4 {[%emt 0:00:37]} Qg2 {[%emt 0:00:10]} 53. Qc3 {[%emt 0:00:41]} Rc2 {[%emt 0:00:11]} 54. Qb4 {[%emt 0:00:21] [#]} (54. Qa3 $142) 54... Qa8+ $1 $19 {[%emt 0:00:15]} (54... h4 55. Rd8 $18) 55. Kb1 {[%emt 0:00:48]} Rf2 {[%emt 0:00:30]} 56. Qe7 $2 {[%emt 0:00:52]} (56. Qe1 $19 Qg2 57. Qb4) 56... Rf1+ {[%emt 0:00:29]} 57. Kc2 {[%emt 0:00:00]} Qa4+ {[%emt 0:00:05]} 58. b3 {[%emt 0:00:57]} Qa2+ {[%emt 0:00:15]} 59. Kc3 {[%emt 0:00:32]} Rf3+ {[%emt 0:01:57]} 60. Rd3 {[%emt 0:00:32]} Qa1+ {[%emt 0:00:19]} 61. Kb4 {[%emt 0:00:28]} Rxd3 {[%emt 0:00:06]} 62. Qf6+ {[%emt 0:00:03]} Kg8 {[%emt 0:00:05]} 0-1

[Event "SixDays GM March 2024"]
[Site "Budapest"]
[Date "2024.04.01"]
[Round "5.2"]
[White "Kaasen, Tor Fredrik"]
[Black "Grover, Sahaj"]
[Result "1/2-1/2"]
[ECO "D31"]
[WhiteElo "2449"]
[BlackElo "2514"]
[Annotator "RC"]
[PlyCount "37"]
[EventDate "2024.03.26"]
[EventType "tourn"]
[EventCountry "HUN"]
[SourceTitle "playchess.com"]
[Source "ChessBase"]
[SourceQuality "1"]
[TimeControl "5400+30"]

1. d4 {[%emt 0:00:03]} d5 {[%emt 0:08:34]} 2. c4 {[%emt 0:00:26]} e6 {[%emt 0:00:04]} 3. Nc3 {[%emt 0:00:54]} a6 {[%emt 0:00:14]} 4. cxd5 {[%emt 0:03:09]} exd5 {[%emt 0:00:07]} 5. Nf3 {[%emt 0:00:12]} Nf6 {[%emt 0:00:04]} 6. Bg5 {[%emt 0:00:36]} Be6 {[%emt 0:00:05]} 7. e3 {[%emt 0:00:34]} Nbd7 {[%emt 0:00:04]} 8. Bd3 {[%emt 0:00:59]} c6 {[%emt 0:00:04]} 9. h3 {[%emt 0:01:15]} Bd6 {[%emt 0:00:15]} 10. Bf4 {[%emt 0:00:30]} Qb8 {[%emt 0:00:40]} 11. Qd2 {[%emt 0:00:43]} O-O {[%emt 0:00:10]} 12. O-O {[%emt 0:01:15]} h6 {[%emt 0:07:34]} 13. Rfe1 {[%emt 0:01:51]} Re8 {[%emt 0:03:04]} 14. Rac1 {[%emt 0:01:44]} a5 {[%emt 0:05:35]} 15. Bb1 {[%emt 0:02:52]} a4 {[%emt 0:07:13]} 16. b3 {[%emt 0:04:53]} axb3 {[%emt 0:01:39]} 17. axb3 {[%emt 0:00:17]} Nh5 {[%emt 0:14:25]} 18. Bxd6 {[%emt 0:02:17]} Qxd6 {[%emt 0:00:18]} 19. Na4 {[%emt 0:06:32]} 1/2-1/2